fUSD/lending_fUSD_20240828
["ID","MTS","AMOUNT","RATE_DAILY","PERIOD"]
[336401656,1724809083675,1326.34,0.00025,120]
[336401657,1724809083846,1440.93,0.00025,120]
[336401658,1724809084228,1440.93,0.00025,120]
[336401659,1724809084279,1326.34,0.00025,120]
[336401660,1724809084519,1440.93,0.00025,120]
[336401661,1724809084580,1326.34,0.00025,120]
[336401662,1724809084831,1326.43,0.00025,120]
[336401663,1724809084880,1440.93,0.00025,120]
[336401664,1724809084999,504.71621412,0.00025,120]
[336401665,1724809085183,1440.93,0.00025,120]
[336401666,1724809085482,1440.93,0.00025,120]
[336401667,1724809086114,1441.00999999,0.00025,120]
[336401668,1724809087603,505.33341804,0.00025,120]
[336401669,1724809088446,500.0,0.00025,120]
[336401670,1724809088710,500.0,0.00025,120]
[336401671,1724809088972,500.0,0.00025,120]
[336401672,1724809089252,500.0,0.00025,120]
[336401673,1724809089541,624.73,0.00025,120]
[336401674,1724809089813,501.92884055,0.00025,120]
[336401675,1724809092132,503.19471684,0.00025,120]
[336401676,1724809092954,502.6631593,0.00025,120]
[336401677,1724809101342,500.0,0.00025,120]
[336401678,1724809101638,213.94263944,0.00025,120]
[336401679,1724809102325,505.1041529,0.00025,120]
[336401680,1724809103993,503.41544312,0.00025,120]
[336401681,1724809111407,500.0,0.00025,120]
[336401682,1724809111668,500.0,0.00025,120]
[336401683,1724809113041,500.0,0.00025,120]
[336401684,1724809113308,500.0,0.00025,120]
[336401685,1724809113581,500.0,0.00025,120]
[336401686,1724809113881,500.0,0.00025,120]
[336401687,1724809113923,253.25374918,0.00025,120]
[336401688,1724809114144,500.0,0.00025,120]
[336401689,1724809114369,500.0,0.00025,120]
[336401690,1724809114805,500.0,0.00025,120]
[336401691,1724809115065,500.0,0.00025,120]
[336401692,1724809115340,500.0,0.00025,120]
[336401693,1724809115917,511.50262877,0.00025,120]
[336401694,1724809117387,500.0,0.00025,120]
[336401695,1724809117668,500.0,0.00025,120]
[336401696,1724809118204,500.0,0.00025,120]
[336401697,1724809118250,517.31728879,0.00025,120]
[336401698,1724809118337,500.0,0.00025,120]
[336401699,1724809118596,500.0,0.00025,120]
[336401700,1724809118869,538.52,0.00025,120]
[336401701,1724809122585,508.36138344,0.00025,120]
[336401702,1724809123360,2001.72,0.00025,120]
[336401703,1724809125091,490.26462505,0.00025,120]
[336401704,1724809131204,500.0,0.00025,120]
[336401705,1724809131469,500.0,0.00025,120]
[336401706,1724809131730,500.0,0.00025,120]
[336401707,1724809132018,335.44,0.00025,120]
[336401708,1724809136244,500.0,0.00025,120]
[336401709,1724809136534,500.0,0.00025,120]
[336401710,1724809137110,500.0,0.00025,120]
[336401711,1724809137588,500.0,0.00025,120]
[336401712,1724809137737,500.0,0.00025,120]
[336401713,1724809138002,500.0,0.00025,120]
[336401714,1724809138259,500.0,0.00025,120]
[336401715,1724809138519,500.0,0.00025,120]
[336401716,1724809138778,500.0,0.00025,120]
[336401717,1724809138834,501.88092065,0.00025,120]
[336401718,1724809139064,238.42,0.00025,120]
[336401719,1724809141274,500.0,0.00025,120]
[336401720,1724809141585,500.0,0.00025,120]
[336401721,1724809141854,408.14,0.00025,120]
[336401722,1724809146103,508.58887598,0.00025,120]
[336401723,1724809149754,504.96163703,0.00025,120]
[336401724,1724809152861,503.60386789,0.00025,120]
[336401725,1724809158695,502.34097889,0.00025,120]
[336401726,1724809160491,160.25,9.485e-05,2]
[336401727,1724809162694,502.36799028,0.00025,120]
[336401728,1724809168002,500.0,0.00025,120]
[336401729,1724809168283,500.0,0.00025,120]
[336401730,1724809168531,362.24,0.00025,120]
[336401731,1724809198190,510.30040143,0.00025,120]
[336401732,1724809205046,500.0,0.00025,120]
[336401733,1724809205370,500.0,0.00025,120]
[336401734,1724809205632,500.0,0.00025,120]
[336401735,1724809205888,500.0,0.00025,120]
[336401736,1724809206299,500.0,0.00025,120]
[336401737,1724809206641,640.58734222,0.00025,120]
[336401738,1724809209188,500.0,0.00025,120]
[336401739,1724809209486,500.0,0.00025,120]
[336401740,1724809209772,500.0,0.00025,120]
[336401741,1724809210038,500.0,0.00025,120]
[336401742,1724809210109,500.0,0.00025,120]
[336401743,1724809210300,500.0,0.00025,120]
[336401744,1724809210521,486.66079207,0.00025,120]
[336401745,1724809210577,500.0,0.00025,120]
[336401746,1724809210843,605.1304131,0.00025,120]
[336401747,1724809214737,500.0,0.00025,120]
[336401748,1724809215021,506.51735826,0.00025,120]
[336401749,1724809215076,500.0,0.00025,120]
[336401750,1724809215324,500.0,0.00025,120]
[336401751,1724809215582,500.0,0.00025,120]
[336401752,1724809215886,500.0,0.00025,120]
[336401753,1724809216181,500.0,0.00025,120]
[336401754,1724809216427,500.0,0.00025,120]
[336401755,1724809216775,518.95171598,0.00025,120]
[336401756,1724809217655,500.44597622,0.00025,120]
[336401757,1724809219179,500.0,0.00025,120]
[336401758,1724809219450,228.77672363,0.00025,120]
[336401759,1724809220431,270.06,9.554e-05,2]
[336401760,1724809264790,155.77513,9.554e-05,2]
[336401761,1724809268464,310.00599885,9.554e-05,2]
[336401762,1724809269418,326.26334884,9.554e-05,2]
[336401763,1724809312090,9835.20091901,9.554e-05,2]
[336401768,1724809397942,309.28,9.584e-05,2]
[336401769,1724809456140,318.51,9.552e-05,2]
[336401770,1724809472030,239.9043,9.867e-05,2]
[336401771,1724809503201,155.99194586,9.552e-05,2]
[336401772,1724809506500,288.09,9.609e-05,2]
[336401773,1724809506707,288.09,9.611e-05,2]
[336401774,1724809506936,288.09,9.614e-05,2]
[336401775,1724809507267,288.09,9.616e-05,2]
[336401776,1724809507471,288.09,9.619e-05,2]
[336401777,1724809507704,288.09,9.621e-05,2]
[336401778,1724809507956,288.09,9.624e-05,2]
[336401779,1724809508203,288.09,9.626e-05,2]
[336401780,1724809508414,288.09,9.629e-05,2]
[336401781,1724809508626,288.09,9.631e-05,2]
[336401782,1724809509074,288.09,9.634e-05,2]
[336401783,1724809509286,288.09,9.636e-05,2]
[336401784,1724809509649,288.09,9.639e-05,2]
[336401785,1724809509869,288.09,9.641e-05,2]
[336401786,1724809510122,288.09,9.644e-05,2]
[336401787,1724809510412,288.09,9.646e-05,2]
[336401788,1724809510634,288.09,9.649e-05,2]
[336401789,1724809510887,288.09,9.651e-05,2]
[336401790,1724809511142,288.09,9.654e-05,2]
[336401791,1724809511441,288.09,9.656e-05,2]
[336401792,1724809555839,401.3631,9.867e-05,2]
[336401793,1724809558727,594.24,9.625e-05,2]
[336401794,1724809588764,600.91565074,9.656e-05,2]
[336401795,1724809591648,554.25,8.219e-05,2]
[336401796,1724809627200,159.13,6.868e-05,2]
[336401802,1724809661318,250.0,9.614e-05,2]
[336401865,1724809813419,7568.45,9.571e-05,2]
[336401894,1724809832480,-678.26,9.955e-05,2]
[336401895,1724809832493,-678.26,9.957e-05,2]
[336401896,1724809832504,-678.26,9.96e-05,2]
[336401897,1724809832518,-446.42419989,9.963e-05,2]
[336401898,1724809832532,-231.83580011,9.963e-05,2]
[336401899,1724809832543,-678.26,9.965e-05,2]
[336401900,1724809832555,-678.26,9.968e-05,2]
[336401901,1724809832565,-678.26,9.971e-05,2]
[336401902,1724809832578,-300.0,9.972e-05,2]
[336401903,1724809832589,-678.26,9.973e-05,2]
[336401904,1724809832600,-999.99,9.973e-05,2]
[336401905,1724809832610,-1494.86571593,9.973e-05,2]
[336401906,1724809832623,-8505.12428407,9.973e-05,2]
[336401907,1724809832634,-150.0,9.975e-05,2]
[336401909,1724809832645,-499.99,9.975e-05,2]
[336401910,1724809832657,-299.99,9.976e-05,2]
[336401911,1724809832667,-340.64,9.976e-05,2]
[336401912,1724809832677,-150.99,9.976e-05,2]
[336401913,1724809832688,-9321.44,9.976e-05,2]
[336401914,1724809832698,-695.27,9.976e-05,2]
[336401915,1724809832710,-678.26,9.976e-05,2]
[336401916,1724809832721,-678.26,9.979e-05,2]
[336401917,1724809832731,-678.26,9.981e-05,2]
[336401918,1724809832740,-678.26,9.984e-05,2]
[336401919,1724809832749,-678.26,9.986e-05,2]
[336401920,1724809832759,-678.26,9.989e-05,2]
[336401921,1724809832768,-678.26,9.992e-05,2]
[336401922,1724809832777,-678.26,9.994e-05,2]
[336401923,1724809832787,-678.26,9.997e-05,2]
[336401924,1724809832796,-678.26,0.0001,2]
[336401925,1724809832805,-500.0,0.0001,2]
[336401926,1724809832815,-500.0,0.0001,2]
[336401927,1724809833079,-500.0,0.0001,2]
[336401928,1724809833097,-503.36,0.0001,2]
[336401929,1724809833106,-500.0,0.0001,2]
[336401930,1724809833116,-500.0,0.0001,2]
[336401931,1724809833125,-500.0,0.0001,2]
[336401932,1724809833134,-500.0,0.0001,2]
[336401933,1724809833144,-500.0,0.0001,2]
[336401934,1724809833154,-500.0,0.0001,2]
[336401935,1724809833163,-500.0,0.0001,2]
[336401936,1724809833173,-415.73,0.0001,2]
[336401937,1724809833182,-500.0,0.0001,2]
[336401938,1724809833191,-383.95,0.0001,2]
[336401939,1724809833200,-500.0,0.0001,2]
[336401940,1724809833212,-177.0,0.0001,2]
[336401941,1724809833221,-500.0,0.0001,2]
[336401942,1724809833230,-500.0,0.0001,2]
[336401943,1724809833240,-4807.68440752,0.0001,2]
[336401944,1724809833249,-1050.0,0.0001,2]
[336401945,1724809833258,-678.26,0.00010002,2]
[336401946,1724809833267,-678.26,0.00010005,2]
[336401947,1724809833277,-155.09463569,0.00010009,2]
[336401948,1724809833286,-155.0623189,0.00010009,2]
[336401949,1724809833295,-155.0,0.00010009,2]
[336401950,1724809833305,-155.0,0.00010009,2]
[336401951,1724809833315,-155.06661429,0.00010026,2]
[336401952,1724809833324,-4006.12,0.00010068,2]
[336401953,1724809833334,-151.19,0.00010133,2]
[336401954,1724809833343,-554.25,0.00010457,2]
[336401955,1724809833352,-150.11,0.00010552,2]
[336401956,1724809833362,-3036.46722466,0.00010566,2]
[336401957,1724809833371,-1076.2668032,0.00010699,2]
[336401958,1724809833382,-507.2,0.00010716,2]
[336401959,1724809833391,-309.28,0.00010782,2]
[336401960,1724809833400,-1500.0,0.00010796,2]
[336401961,1724809833409,-1500.0,0.00010796,2]
[336401962,1724809833418,-701.75752075,0.00010799,2]
[336401963,1724809833428,-645.2175172,0.00010799,2]
[336401964,1724809833438,-35864.4887,0.000108,2]
[336401965,1724809833447,-204.2691,0.000108,2]
[336401966,1724809833459,-695.72058537,0.000108,2]
[336401967,1724809833468,-699.33061922,0.000108,2]
[336401968,1724809833478,-500.0,0.000108,2]
[336401969,1724809833487,-594.24,0.00010828,2]
[336401970,1724809833496,-742.97931014,0.00010838,2]
[336401971,1724809833506,-201.14368437,0.00010861,2]
[336401972,1724809833515,-500.0,0.00010861,2]
[336401973,1724809833526,-155.0,0.00010861,2]
[336401974,1724809833535,-297.9262755,0.00010862,2]
[336401975,1724809833544,-255.75245433,0.00010888,2]
[336401976,1724809833554,-155.0,0.00010888,2]
[336401977,1724809833563,-167.18368,0.0001089,2]
[336401978,1724809833573,-349.0603939,0.0001089,2]
[336401979,1724809833585,-455.04212358,0.0001089,2]
[336401980,1724809833594,-155.51926131,0.0001089,2]
[336401981,1724809833604,-963.71264311,0.0001089,2]
[336401982,1724809833614,-7500.0,0.0001089,2]
[336401983,1724809833624,-349.0603939,0.00010892,2]
[336401984,1724809833633,-349.0603939,0.00010894,2]
[336401985,1724809833643,-349.0603939,0.00010896,2]
[336401986,1724809833653,-349.0603939,0.00010898,2]
[336401987,1724809833662,-168.24641828,0.00010899,2]
[336401988,1724809833671,-168.24641825,0.00010899,2]
[336401989,1724809833681,-168.24641825,0.00010899,2]
[336401990,1724809833690,-155.0,0.00010899,2]
[336401991,1724809833699,-654.65860193,0.00010899,2]
[336401992,1724809833710,-3378.6122,0.000109,2]
[336401993,1724809833719,-1000.0,0.000109,2]
[336401994,1724809833729,-328.2786,0.000109,2]
[336401995,1724809833739,-197.84632082,0.000109,2]
[336401996,1724809833749,-152.71955967,0.000109,2]
[336401997,1724809833758,-353.73683618,0.000109,2]
[336401998,1724809833767,-167.18368,0.000109,2]
[336401999,1724809833776,-159.6709369,0.000109,2]
[336402000,1724809833785,-159.67093689,0.000109,2]
[336402001,1724809833794,-159.67093689,0.000109,2]
[336402002,1724809833804,-159.67093689,0.000109,2]
[336402003,1724809833813,-159.67093689,0.000109,2]
[336402004,1724809833822,-1031.193146,0.000109,2]
[336402005,1724809833832,-168.24641825,0.000109,2]
[336402006,1724809833841,-349.0603939,0.000109,2]
[336402007,1724809833850,-188.51932041,0.000109,2]
[336402008,1724809833860,-1208.44364365,0.0001094,2]
[336402009,1724809833869,-167.18368,0.0001094,2]
[336402010,1724809833878,-5800.0,0.00010957,2]
[336402011,1724809833888,-218.343609,0.00010958,2]
[336402012,1724809833897,-196.214165,0.00010958,2]
[336402013,1724809833907,-243.710885,0.00010958,2]
[336402014,1724809833916,-200.0,0.00010959,2]
[336402015,1724809833926,-226.99,0.00010959,2]
[336402016,1724809833936,-250.0,0.00010959,2]
[336402017,1724809833945,-5800.0,0.00010965,2]
[336402018,1724809833956,-420.0,0.00010969,2]
[336402019,1724809833966,-152.0,0.00010972,2]
[336402020,1724809833976,-500.0,0.00010973,2]
[336402021,1724809833985,-5800.0,0.00010973,2]
[336402022,1724809833994,-524.9611083,0.00010979,2]
[336402023,1724809834003,-440.73480852,0.00010979,2]
[336402024,1724809834013,-5800.0,0.00010982,2]
[336402025,1724809834023,-160.47,0.0001099,2]
[336402026,1724809834032,-59850.24498447,0.0001099,2]
[336402027,1724809834045,-4887.80492852,0.0001099,2]
[336402028,1724809834056,-751.39001507,0.0001099,2]
[336402029,1724809834067,-6558.09753364,0.0001099,2]
[336402030,1724809834077,-503.88900716,0.0001099,2]
[336402031,1724809834088,-341.48088377,0.0001099,2]
[336402032,1724809834100,-2623.27656087,0.0001099,2]
[336402033,1724809834115,-1865.69249295,0.0001099,2]
[336402034,1724809834127,-555.90330277,0.0001099,2]
[336402035,1724809834138,-1926.93036806,0.0001099,2]
[336402036,1724809834149,-170135.28992272,0.0001099,2]
[336402037,1724809834159,-5800.0,0.00010991,2]
[336402038,1724809834168,-1500.0,0.00010991,2]
[336402039,1724809834177,-442.43850177,0.00010993,2]
[336402040,1724809834186,-150.0,0.00010997,2]
[336402041,1724809834196,-150.0,0.00010997,2]
[336402042,1724809834206,-150.0,0.00010997,2]
[336402043,1724809834215,-150.0,0.00010997,2]
[336402044,1724809834224,-150.0,0.00010997,2]
[336402045,1724809834235,-150.0,0.00010998,2]
[336402046,1724809834244,-150.0,0.00010998,2]
[336402047,1724809834254,-150.0,0.00010998,2]
[336402048,1724809834264,-150.0,0.00010998,2]
[336402049,1724809834273,-150.0,0.00010998,2]
[336402050,1724809834283,-5800.0,0.00010999,2]
[336402051,1724809834293,-500.0,0.00010999,2]
[336402052,1724809834302,-500.0,0.00010999,2]
[336402053,1724809834312,-500.0,0.00010999,2]
[336402054,1724809834322,-500.0,0.00010999,2]
[336402055,1724809834332,-480.11476905,0.00010999,2]
[336402056,1724809834342,-500.0,0.00010999,2]
[336402057,1724809834352,-500.0,0.00010999,2]
[336402058,1724809834362,-500.0,0.00010999,2]
[336402059,1724809834372,-500.0,0.00010999,2]
[336402060,1724809834382,-389.13769178,0.00010999,2]
[336402061,1724809834392,-591.0,0.00011,2]
[336402062,1724809834401,-167580.1771323,0.00011,2]
[336402063,1724809834411,-121699.77804069,0.00011,2]
[336402064,1724809834423,-976.47953325,0.00011,2]
[336402065,1724809834435,-327.85685687,0.00011,2]
[336402066,1724809834446,-769.24526281,0.00011,2]
[336402067,1724809834458,-298.3,0.00011,2]
[336402068,1724809834474,-13555.80025837,0.00011,2]
[336402072,1724809838412,-155.08250377,0.00010009,2]
[336402074,1724809838421,-155.0,0.00010861,2]
[336402076,1724809838431,-267.38974585,0.00010862,2]
[336402077,1724809838440,-355.89574397,0.000109,2]
[336402078,1724809838450,-8314.03327707,0.00011,2]
[336402079,1724809838461,-2388.94041669,0.00011,2]
[336402080,1724809838472,-1919.49092263,0.00011,2]
[336402081,1724809838698,-1999.7712,0.00011,2]
[336402082,1724809838709,-1698.03970922,0.00011,2]
[336402083,1724809838720,-1079.19611686,0.00011,2]
[336402084,1724809838731,-125671.50416776,0.00011,2]
[336402085,1724809838761,-1632.9959002,0.00011,2]
[336402086,1724809838772,-965.47893929,0.00011,2]
[336402087,1724809838783,-14005.94135658,0.00011,2]
[336402088,1724809838872,-1107.2408442,0.00011,2]
[336402090,1724809838883,-19177.27197511,0.00011,2]
[336402233,1724809840468,-792.06884583,0.00010999,2]
[336402235,1724809840479,-1188.83779953,0.00010999,2]
[336402237,1724809840491,-8012.30233776,0.00010999,2]
[336402239,1724809840501,-48546.24668985,0.00011,2]
[336402241,1724809840512,-5198.16634652,0.00011,2]
[336402254,1724809840622,-48363.04123578,0.00011,2]
[336402256,1724809840631,-250.0,0.00011,2]
[336402258,1724809840641,-177027.90913364,0.00011,2]
[336402260,1724809840653,-760.11591725,0.00011,2]
[336402262,1724809840665,-401.71205352,0.00011,2]
[336402264,1724809840677,-3333.99104239,0.00011,2]
[336402549,1724809843524,-532.0,0.00011,2]
[336402551,1724809843535,-23934.60123714,0.00011,2]
[336402553,1724809843547,-71783.70110887,0.00011,2]
[336402567,1724809843689,-16883.48002721,0.00011,2]
[336402645,1724809844630,-3313.60911296,0.00011,2]
[336402647,1724809844642,-526.02,0.00011,2]
[336402807,1724809846288,-486.24,0.00011,2]
[336402832,1724809846467,-488.36368684,0.00011,2]
[336402835,1724809846490,-35179.26100874,0.00011,2]
[336402837,1724809846500,-1771.28239606,0.00011,2]
[336402849,1724809846640,-2823.1340488,0.00011,2]
[336402850,1724809846652,-1543.58513441,0.00011,2]
[336402869,1724809923790,500.0,0.00023,120]
[336402870,1724810077140,560.69,8.549e-05,2]
[336402871,1724810141188,159.12,7.605e-05,2]
[336402872,1724810242831,155.24329663,9.218e-05,2]
[336402873,1724810323872,1079.80233652,0.00023,60]
[336402874,1724810382526,151.2,9.872e-05,2]
[336402875,1724810436183,3036.46722466,9.899e-05,2]
[336402877,1724810598977,563.47,8.219e-05,2]
[336402878,1724810672919,159.11,7.156e-05,2]
[336402879,1724810682546,7610.05395789,8.219e-05,2]
[336402880,1724810749739,443.08,9.876e-05,2]
[336402881,1724810753758,250.0,9.876e-05,2]
[336402883,1724810785975,629.36,9.824e-05,2]
[336402884,1724810823549,7584.67251845,9.876e-05,2]
[336403663,1724810857187,271.18261907,9.91e-05,2]
[336403702,1724810891745,151.21,9.813e-05,2]
[336403703,1724810913288,155.4317511,9.91e-05,2]
[336403708,1724810931931,9812.0,0.00023,60]
[336403709,1724810933559,7588.49968644,9.91e-05,2]
[336403712,1724810972052,5723.11240796,9.819e-05,2]
[336403713,1724810972080,1754.27759204,9.819e-05,2]
[336403716,1724810986833,11770.17,9.819e-05,2]
[336403766,1724811036074,6786.77535046,9.819e-05,2]
[336403781,1724811038531,-200.0,9.918e-05,2]
[336403784,1724811038542,-402.16,9.934e-05,2]
[336403786,1724811038552,-302.77,0.0001,2]
[336403787,1724811038561,-291.02520642,0.0001,2]
[336403788,1724811038570,-572.48146358,0.00010026,2]
[336403789,1724811038581,-3146.7938,0.00010026,2]
[336403790,1724811038592,-884.28010879,0.00010026,2]
[336403791,1724811038710,-3182.8690024,0.00010026,2]
[336403792,1724811038722,-2762.6914361,0.00010026,2]
[336403793,1724811038731,-300.0,0.00010096,2]
[336403794,1724811038740,-2463.3990809,0.00010115,2]
[336403795,1724811038750,-174.15,0.00010215,2]
[336403796,1724811038759,-1000.0,0.00010288,2]
[336403797,1724811038768,-842.27,0.00010341,2]
[336403798,1724811038778,-1725.39,0.00010341,2]
[336403799,1724811038787,-365.75,0.00010466,2]
[336403800,1724811038797,-499.99,0.00010466,2]
[336403801,1724811038806,-2953.39683213,0.00010471,2]
[336403802,1724811038815,-563.47,0.00010472,2]
[336403803,1724811038825,-427.06,0.00010478,2]
[336403804,1724811038834,-1120.23,0.00010478,2]
[336403805,1724811038844,-427.06,0.00010478,2]
[336403806,1724811038853,-716.04,0.00010478,2]
[336403807,1724811038863,-150.0,0.00010478,2]
[336403808,1724811038872,-150.0,0.00010478,2]
[336403809,1724811038881,-150.0,0.00010478,2]
[336403810,1724811038891,-427.06,0.00010478,2]
[336403811,1724811038900,-150.0,0.00010478,2]
[336403812,1724811038909,-426.74,0.00010478,2]
[336403813,1724811038920,-150.0,0.00010478,2]
[336403814,1724811038938,-150.0,0.00010478,2]
[336403815,1724811038947,-1681.1011624,0.00010566,2]
[336403816,1724811038957,-150.0,0.00010677,2]
[336403817,1724811038967,-222.63,0.00010678,2]
[336403818,1724811038976,-300.0,0.00010678,2]
[336403819,1724811038986,-538.85,0.00010678,2]
[336403820,1724811038995,-239.98,0.00010678,2]
[336403821,1724811039006,-1004.0,0.000107,2]
[336403822,1724811039016,-963.71264311,0.00010713,2]
[336403823,1724811039026,-297.7529,0.0001079,2]
[336403824,1724811039035,-10000.0,0.000108,2]
[336403825,1724811039044,-1310.29541612,0.00010845,2]
[336403826,1724811039053,-832.57113672,0.00010852,2]
[336403827,1724811039062,-402.03479932,0.00010862,2]
[336403829,1724811039071,-155.15784022,0.00010862,2]
[336403831,1724811039080,-500.0,0.00010873,2]
[336403833,1724811039090,-455.04212358,0.00010888,2]
[336403835,1724811039100,-155.0,0.00010888,2]
[336403837,1724811039110,-155.65212828,0.00010888,2]
[336403839,1724811039119,-336.44397017,0.00010888,2]
[336403841,1724811039128,-324.75608134,0.00010888,2]
[336403843,1724811039138,-155.0,0.0001089,2]
[336403845,1724811039146,-25168.12625382,0.0001089,2]
[336403847,1724811039158,-422.63973157,0.0001089,2]
[336403849,1724811039170,-1000.19973099,0.0001089,2]
[336403851,1724811039180,-120228.45804198,0.0001089,2]
[336403854,1724811039192,-6442.32659999,0.0001089,2]
[336403857,1724811039211,-773.51245428,0.0001089,2]
[336403859,1724811039223,-3048.91164779,0.0001089,2]
[336403861,1724811039234,-33278.88494011,0.0001089,2]
[336403863,1724811039245,-2944.34240302,0.0001089,2]
[336403866,1724811039256,-9101.3781579,0.0001089,2]
[336403868,1724811039267,-8693.51986952,0.0001089,2]
[336403870,1724811039279,-1381.24087936,0.0001089,2]
[336403998,1724811040586,-312.91,0.0001089,2]
[336404001,1724811040598,-4592.72827989,0.0001089,2]
[336404003,1724811040609,-613.820146,0.0001089,2]
[336404019,1724811040754,-26997.00086378,0.0001089,2]
[336404021,1724811040764,-483.50474331,0.00010899,2]
[336404023,1724811040774,-483.50474328,0.00010899,2]
[336404025,1724811040783,-483.50474328,0.00010899,2]
[336404026,1724811040793,-483.50474328,0.00010899,2]
[336404028,1724811040803,-483.50474328,0.00010899,2]
[336404030,1724811040812,-483.50474328,0.00010899,2]
[336404032,1724811040825,-483.50474328,0.00010899,2]
[336404034,1724811040834,-483.50474328,0.00010899,2]
[336404036,1724811040843,-483.50474328,0.00010899,2]
[336404038,1724811040853,-3036.46722466,0.00010899,2]
[336404040,1724811040863,-210.3364,0.000109,2]
[336404042,1724811040872,-163.926,0.000109,2]
[336404044,1724811040882,-483.50474328,0.000109,2]
[336404046,1724811040891,-311.94738731,0.000109,2]
[336404048,1724811040901,-399.24495352,0.000109,2]
[336404050,1724811040910,-200.0,0.00010959,2]
[336404052,1724811040920,-164.82,0.00010959,2]
[336404054,1724811040932,-181.5,0.00010959,2]
[336404056,1724811040943,-250.0,0.00010959,2]
[336404058,1724811040953,-600.20161217,0.00010973,2]
[336404060,1724811040963,-500.57578355,0.00010973,2]
[336404062,1724811040972,-298.96609996,0.00010973,2]
[336404064,1724811040982,-168.34252552,0.00010979,2]
[336404066,1724811040991,-5800.0,0.00010982,2]
[336404068,1724811041000,-5800.0,0.00010991,2]
[336404069,1724811041010,-150.0,0.00010997,2]
[336404071,1724811041019,-150.0,0.00010997,2]
[336404073,1724811041029,-150.0,0.00010997,2]
[336404075,1724811041039,-150.0,0.00010997,2]
[336404077,1724811041048,-150.0,0.00010997,2]
[336404079,1724811041057,-150.0,0.00010998,2]
[336404081,1724811041066,-150.0,0.00010998,2]
[336404083,1724811041076,-150.0,0.00010998,2]
[336404085,1724811041085,-150.0,0.00010998,2]
[336404087,1724811041095,-150.0,0.00010998,2]
[336404089,1724811041105,-1336.59426136,0.00010999,3]
[336404091,1724811041114,-1332.12071778,0.00010999,3]
[336404093,1724811041123,-5800.0,0.00010999,2]
[336404095,1724811041133,-164.45719656,0.00010999,2]
[336404096,1724811041142,-526.57085464,0.00010999,2]
[336404098,1724811041151,-88839.25831334,0.00011,2]
[336404100,1724811041161,-2000.0,0.00011,2]
[336404103,1724811041172,-5328945.75229156,0.00011,2]
[336404105,1724811041182,-2000.0,0.00011,2]
[336404107,1724811041191,-1052.67469645,0.00011,2]
[336404109,1724811041200,-7940.64041869,0.00011,2]
[336404112,1724811041215,-3017.34446,0.00011,2]
[336404114,1724811041226,-1079.1404404,0.00011,2]
[336404116,1724811041237,-605.06484465,0.00011,2]
[336404373,1724811043766,-1125.64308436,0.00010726,2]
[336404375,1724811043778,-382.12258582,0.00010726,2]
[336404377,1724811043790,-971.46964766,0.00010726,2]
[336404379,1724811043799,-5429.4257653,0.00011,2]
[336404382,1724811043811,-557.1841514,0.00011,2]
[336404384,1724811043822,-7238.51975934,0.00011,2]
[336404386,1724811043834,-9721.74970968,0.00011,2]
[336404388,1724811043845,-3067.36856786,0.00011,2]